fUST/lending_fUST_20250915
["ID","MTS","AMOUNT","RATE_DAILY","PERIOD"]
[385626832,1757932243112,-480.0,0.00027123,3]
[385626833,1757932243252,-480.0,0.00027123,3]
[385626834,1757932243270,-1500.0,0.00027168,2]
[385626835,1757932243279,-450.0,0.00027168,2]
[385626836,1757932243289,-152.476453,0.00027214,14]
[385626837,1757932243298,-480.0,0.00027296,3]
[385626838,1757932243308,-480.0,0.00027296,3]
[385626839,1757932243318,-188.65949381,0.00027333,7]
[385626840,1757932243327,-409.57,0.00027333,7]
[385626841,1757932243335,-156.62,0.0002737,2]
[385626842,1757932243345,-13615.39427486,0.00027371,2]
[385626843,1757932243354,-157.54490115,0.00027373,2]
[385626844,1757932243364,-2004.36785638,0.0002739,2]
[385626845,1757932243373,-197.52634756,0.0002739,2]
[385626846,1757932243382,-400.0,0.0002739,2]
[385626847,1757932243391,-150.0,0.0002739,2]
[385626848,1757932243401,-500.0,0.00027397,3]
[385626849,1757932243410,-154.2363737,0.00027397,2]
[385626850,1757932243420,-480.0,0.00027397,3]
[385626851,1757932243429,-7162.47,0.00027397,3]
[385626852,1757932243439,-480.0,0.00027397,3]
[385626853,1757932243448,-1708.18,0.00027397,3]
[385626854,1757932243457,-480.0,0.00027397,3]
[385626855,1757932243466,-1257.88,0.00027397,3]
[385626856,1757932243475,-480.0,0.00027397,3]
[385626857,1757932243484,-480.0,0.00027397,3]
[385626858,1757932243494,-1500.0,0.00027397,2]
[385626859,1757932243505,-296.39804487,0.00027397,2]
[385626860,1757932243515,-300.0,0.00027397,5]
[385626861,1757932243524,-2000.0,0.000274,2]
[385626862,1757932243533,-409.57,0.00027433,15]
[385626863,1757932243543,-45300.83609717,0.000275,2]
[385626864,1757932243552,-1000.0,0.00027521,5]
[385626865,1757932243561,-250.0,0.00027521,5]
[385626866,1757932243570,-409.57,0.00027533,15]
[385626867,1757932243579,-2000.0,0.00027554,5]
[385626868,1757932243589,-1500.0,0.00027554,5]
[385626869,1757932243598,-2000.0,0.00027554,5]
[385626870,1757932243607,-209.05238701,0.00027554,5]
[385626871,1757932243617,-2334.16,0.00027559,4]
[385626872,1757932243626,-480.0,0.0002757,3]
[385626873,1757932243636,-480.0,0.0002757,3]
[385626874,1757932243645,-560.0,0.00027586,2]
[385626875,1757932243656,-3000.0,0.00027612,5]
[385626876,1757932243666,-1140.10932349,0.00027612,5]
[385626877,1757932243675,-409.57,0.00027633,15]
[385626878,1757932243684,-500.0,0.00027671,3]
[385626879,1757932243694,-480.0,0.00027671,3]
[385626880,1757932243703,-7162.47,0.00027671,3]
[385626881,1757932243713,-480.0,0.00027671,3]
[385626882,1757932243722,-1708.18,0.00027671,3]
[385626883,1757932243731,-480.0,0.00027671,3]
[385626884,1757932243741,-1257.88,0.00027671,3]
[385626885,1757932243750,-480.0,0.00027671,3]
[385626886,1757932243759,-961.51,0.000277,7]
[385626887,1757932243768,-1000.0,0.00027716,5]
[385626888,1757932243777,-600.0,0.00027716,5]
[385626889,1757932243787,-409.57,0.00027733,15]
[385626890,1757932243796,-409.57,0.00027833,15]
[385626891,1757932243806,-480.0,0.00027844,3]
[385626892,1757932243815,-480.0,0.00027844,3]
[385626893,1757932243824,-1000.0,0.000279,2]
[385626894,1757932243833,-409.57,0.00027933,15]
[385626895,1757932243842,-500.0,0.00027945,3]
[385626896,1757932243851,-480.0,0.00027945,3]
[385626897,1757932243860,-7162.47,0.00027945,3]
[385626898,1757932243870,-480.0,0.00027945,3]
[385626899,1757932243881,-1708.18,0.00027945,3]
[385626900,1757932243890,-480.0,0.00027945,3]
[385626901,1757932243899,-1257.88,0.00027945,3]
[385626902,1757932243908,-480.0,0.00027945,3]
[385626903,1757932243917,-191.75742074,0.00027945,5]
[385626904,1757932243926,-1430.60236638,0.00028,2]
[385626905,1757932243935,-4987.01900398,0.00028,5]
[385626906,1757932243952,-483.56927191,0.00028,5]
[385626907,1757932243963,-752.73625706,0.00028,5]
[385626908,1757932243974,-4065.47154268,0.00028,5]
[385626909,1757932243986,-409.57,0.00028033,15]
[385626910,1757932243995,-1500.0,0.00028047,7]
[385626911,1757932244004,-1500.0,0.00028068,5]
[385626912,1757932244013,-350.0,0.00028068,5]
[385626913,1757932244024,-12949.07293069,0.000281,7]
[385626940,1757932245382,209.6707344,0.000199,2]
[385626950,1757932246562,-209.67073432,0.00023522,2]
[385626951,1757932246572,-201.84565668,0.00027144,7]
[385633532,1757932314692,257.0,0.00027,120]
[385637726,1757932927211,507.01913441,0.00027397,120]
[385637727,1757932975384,163.970046,0.00027397,120]
[385637778,1757933432666,-180.58015091,0.00021729,2]
[385637780,1757933432677,-426.294376,0.00022563,2]
[385637781,1757933432686,-922.6931919,0.00023479,2]
[385637783,1757933432696,-179.73097,0.00023494,2]
[385637785,1757933432706,-661.0205532,0.00023503,2]
[385637786,1757933432716,-300.0,0.00023517,2]
[385637787,1757933432726,-1200.0,0.00023517,2]
[385637788,1757933432736,-300.0,0.00023517,2]
[385637789,1757933432746,-1200.0,0.00023518,2]
[385637790,1757933432756,-15626.8319457,0.00023519,2]
[385637791,1757933432765,-500.0,0.00023572,2]
[385637792,1757933432776,-550.77331757,0.00023572,2]
[385637793,1757933432786,-500.0,0.00023573,2]
[385637794,1757933432795,-500.01482618,0.00023573,2]
[385637795,1757933432805,-500.0,0.00023573,2]
[385637796,1757933432815,-429.31065255,0.00023573,2]
[385637797,1757933432825,-500.0,0.00023573,2]
[385637798,1757933432834,-500.0,0.00023573,2]
[385637799,1757933432844,-500.0,0.00023573,2]
[385637800,1757933432854,-500.0,0.00023573,2]
[385637801,1757933432864,-500.0,0.00023573,2]
[385637802,1757933432874,-500.0,0.00023573,2]
[385637803,1757933432883,-500.0,0.00023573,2]
[385637804,1757933432892,-500.0,0.00023573,2]
[385637805,1757933432903,-500.0,0.00023573,2]
[385637806,1757933432912,-336.27895368,0.00023573,2]
[385637807,1757933432922,-500.0,0.00023573,2]
[385637808,1757933432931,-500.0,0.000236,2]
[385637809,1757933432941,-500.13343125,0.00024021,2]
[385637810,1757933432951,-1002.30528819,0.00024121,2]
[385637811,1757933432960,-1000.0,0.00024121,2]
[385637812,1757933432970,-1000.0,0.00024121,2]
[385637813,1757933432979,-836.22939473,0.00024121,2]
[385637814,1757933432991,-163.77060527,0.00024121,2]
[385637815,1757933433001,-1000.0,0.00024121,2]
[385637816,1757933433011,-1000.0,0.00024121,2]
[385637817,1757933433021,-500.95718781,0.00024121,2]
[385637818,1757933433031,-1000.0,0.00024121,2]
[385637819,1757933433200,-357.2568059,0.00024121,2]
[385637820,1757933433212,-1000.0,0.00024121,2]
[385637821,1757933433223,-1000.0,0.00024148,2]
[385637822,1757933433233,-10592.81255375,0.00024342,2]
[385637823,1757933433243,-198.26325302,0.000244,2]
[385637824,1757933433253,-198.26325301,0.000244,2]
[385637825,1757933433262,-198.26325301,0.000244,2]
[385637826,1757933433272,-1386.88,0.00024447,10]
[385637827,1757933433282,-1155.73,0.00024447,10]
[385637828,1757933433291,-55.25588542,0.00024447,10]
[385637840,1757933438569,-500.0,0.00024447,10]
[385637842,1757933438579,-237.83941026,0.00024456,2]
[385637844,1757933438588,-500.0,0.00024456,2]
[385637846,1757933438597,-500.0,0.00024456,2]
[385637847,1757933438607,-598.32813021,0.00024456,2]
[385637849,1757933438617,-13615.39427488,0.00024457,2]
[385637850,1757933438626,-1636.32770433,0.00024457,2]
[385637851,1757933438635,-2334.16,0.00024499,2]
[385637852,1757933438645,-1636.3277043,0.00024551,2]
[385637853,1757933438655,-370000.0,0.00024557,2]
[385637854,1757933438665,-160.0,0.00024572,2]
[385637855,1757933438674,-500.0,0.00024573,2]
[385637856,1757933438683,-500.0,0.00024573,2]
[385637857,1757933438693,-203.1771519,0.00024573,2]
[385637858,1757933438702,-500.0,0.00024573,2]
[385637859,1757933438712,-500.0,0.00024573,2]
[385637860,1757933438722,-500.0,0.00024573,2]
[385637861,1757933438732,-500.0,0.00024573,2]
[385637862,1757933438741,-500.0,0.00024573,2]
[385637863,1757933438751,-500.0,0.00024573,2]
[385637864,1757933438761,-500.0,0.00024573,2]
[385637865,1757933438770,-500.0,0.00024573,2]
[385637866,1757933438780,-10867.17,0.000246,7]
[385637867,1757933438789,-913.43,0.000246,7]
[385637868,1757933438798,-1636.3277043,0.00024644,2]
[385637869,1757933438808,-480.0,0.00024657,3]
[385637870,1757933438818,-629.27,0.00024657,3]
[385637871,1757933438828,-480.0,0.00024657,3]
[385637872,1757933438838,-174.48234282,0.00024657,3]
[385637873,1757933438847,-489.74970856,0.00024657,3]
[385637874,1757933438856,-486.69533552,0.00024657,3]
[385637875,1757933438866,-282.38,0.00024657,3]
[385637876,1757933438875,-480.0,0.00024657,3]
[385637877,1757933438885,-480.0,0.00024657,3]
[385637878,1757933438894,-383.04,0.00024657,3]
[385637879,1757933438903,-480.0,0.00024657,3]
[385637880,1757933438912,-151.88,0.00024657,3]
[385637881,1757933438921,-480.0,0.00024657,3]
[385637882,1757933438930,-480.0,0.00024657,3]
[385637883,1757933438940,-480.0,0.00024657,3]
[385637884,1757933438950,-160.0,0.00024657,3]
[385637885,1757933438959,-480.0,0.00024657,3]
[385637886,1757933438968,-480.0,0.00024657,3]
[385637887,1757933438978,-480.0,0.00024657,3]
[385637888,1757933438987,-602.58,0.00024657,3]
[385637889,1757933438996,-480.0,0.00024657,3]
[385637890,1757933439007,-480.0,0.00024657,3]
[385637891,1757933439016,-480.0,0.00024657,3]
[385637892,1757933439025,-480.0,0.00024657,3]
[385637893,1757933439035,-480.0,0.00024657,3]
[385637894,1757933439043,-480.0,0.00024657,3]
[385637895,1757933439053,-480.0,0.00024657,3]
[385637896,1757933439063,-659.08,0.00024657,3]
[385637897,1757933439072,-480.0,0.00024657,3]
[385637898,1757933439082,-7162.47,0.00024657,3]
[385637899,1757933439091,-480.0,0.00024657,3]
[385637900,1757933439101,-480.0,0.00024657,3]
[385637901,1757933439111,-480.0,0.00024657,3]
[385637902,1757933439120,-480.0,0.00024657,3]
[385637903,1757933439129,-480.0,0.00024657,3]
[385637904,1757933439139,-1257.88,0.00024657,3]
[385637905,1757933439148,-252.61876092,0.00024657,3]
[385637906,1757933439157,-480.0,0.00024657,3]
[385637907,1757933439167,-480.0,0.00024657,3]
[385637908,1757933439176,-480.0,0.00024657,3]
[385637909,1757933439185,-480.0,0.00024657,3]
[385637910,1757933439194,-480.0,0.00024657,3]
[385637911,1757933439203,-480.0,0.00024657,3]
[385637912,1757933439213,-480.0,0.00024657,3]
[385637913,1757933439222,-423.75429237,0.00024657,3]
[385637914,1757933439231,-480.0,0.00024657,3]
[385637915,1757933439241,-480.0,0.00024657,3]
[385637916,1757933439250,-480.0,0.00024657,3]
[385637917,1757933439259,-1708.18,0.00024657,3]
[385637918,1757933439268,-256.35753592,0.00024657,3]
[385637919,1757933439278,-480.0,0.00024657,3]
[385637920,1757933439287,-1500.0,0.00024668,2]
[385637921,1757933439297,-1500.0,0.00024668,2]
[385637922,1757933439308,-1500.0,0.00024668,2]
[385637923,1757933439317,-500.0,0.00024668,2]
[385637924,1757933439327,-1000.0,0.00024668,2]
[385637925,1757933439336,-1500.0,0.00024668,2]
[385637926,1757933439346,-1500.0,0.00024696,2]
[385637927,1757933439355,-338.5079095,0.00024697,2]
[385637928,1757933439364,-1636.3277043,0.00024738,2]
[385637929,1757933439373,-205.57083006,0.000248,2]
[385637930,1757933439383,-1636.3277043,0.00024831,2]
[385637931,1757933439393,-500.13343123,0.00024871,2]
[385637932,1757933439402,-500.0,0.00024873,2]
[385637933,1757933439411,-500.95830453,0.00024873,2]
[385637934,1757933439420,-500.0,0.00024873,2]
[385637935,1757933439429,-500.0,0.00024873,2]
[385637936,1757933439438,-500.0,0.00024873,2]
[385637937,1757933439447,-500.0,0.00024873,2]
[385637938,1757933439457,-500.0,0.00024873,2]
[385637939,1757933439467,-501.99665933,0.00024873,2]
[385637940,1757933439476,-160.20451492,0.00024873,2]
[385637941,1757933439485,-500.0,0.00024873,2]
[385637942,1757933439494,-501.06223542,0.00024873,2]
[385637943,1757933439503,-500.0,0.00024873,2]
[385637944,1757933439513,-501.73394212,0.00024873,2]
[385637945,1757933439522,-500.0,0.00024873,2]
[385637946,1757933439531,-205.57083006,0.0002489,2]
[385637947,1757933439540,-562194.843895,0.000249,2]
[385637948,1757933439549,-160.0,0.00024921,2]
[385637949,1757933439558,-480.0,0.00024931,3]
[385637950,1757933439567,-540.27357921,0.00024931,3]
[385637951,1757933439578,-480.0,0.00024931,3]
[385637952,1757933439587,-500.0,0.00024931,3]
[385637953,1757933439597,-151.0,0.00024931,3]
[385637954,1757933439606,-151.0,0.00024931,3]
[385637955,1757933439616,-480.0,0.00024931,3]
[385637956,1757933439626,-480.0,0.00024931,3]
[385637957,1757933439636,-480.0,0.00024931,3]
[385637958,1757933439645,-480.0,0.00024931,3]
[385637959,1757933439655,-500.0,0.00024931,2]
[385637960,1757933439665,-157.17790768,0.00024931,2]
[385637961,1757933439674,-151.0,0.00024931,3]
[385637962,1757933439684,-151.0,0.00024931,3]
[385637963,1757933439693,-480.0,0.00024931,3]
[385637964,1757933439702,-480.0,0.00024931,3]
[385637965,1757933439712,-480.0,0.00024931,3]
[385637966,1757933439720,-151.0,0.00024931,3]
[385637967,1757933439730,-480.0,0.00024931,3]
[385637968,1757933439739,-480.0,0.00024931,3]
[385637969,1757933439748,-659.08,0.00024931,3]
[385637970,1757933439757,-7162.47,0.00024931,3]
[385637971,1757933439767,-480.0,0.00024931,3]
[385637972,1757933439776,-480.0,0.00024931,3]
[385637973,1757933439785,-480.0,0.00024931,3]
[385637974,1757933439795,-151.0,0.00024931,3]
[385637975,1757933439804,-480.0,0.00024931,3]
[385637976,1757933439813,-1257.88,0.00024931,3]
[385637977,1757933439823,-480.0,0.00024931,3]
[385637978,1757933439832,-480.0,0.00024931,3]
[385637979,1757933439842,-480.0,0.00024931,3]
[385637980,1757933439852,-480.0,0.00024931,3]
[385637981,1757933439861,-480.0,0.00024931,3]
[385637982,1757933439870,-480.0,0.00024931,3]
[385637983,1757933439880,-480.0,0.00024931,3]
[385637984,1757933439889,-480.0,0.00024931,3]
[385637985,1757933439899,-480.0,0.00024931,3]
[385637986,1757933439908,-1708.18,0.00024931,3]
[385637987,1757933439918,-480.0,0.00024931,3]
[385637988,1757933439927,-500.0,0.00024973,2]
[385637989,1757933439945,-250.68086532,0.00024973,2]
[385637990,1757933439954,-500.0,0.00024973,2]
[385637991,1757933439964,-500.0,0.00024973,2]
[385637992,1757933439973,-500.0,0.00024973,2]
[385637993,1757933439983,-181.21081558,0.00024973,2]
[385637994,1757933439992,-230.35488053,0.00024973,2]
[385637995,1757933440001,-500.0,0.00024973,2]
[385637996,1757933440010,-500.0,0.00024973,2]
[385637997,1757933440020,-150.0,0.00024973,2]
[385637998,1757933440029,-160.76537437,0.00024973,2]
[385637999,1757933440038,-150.0,0.00024973,2]
[385638000,1757933440047,-2993.66281309,0.00025,2]
[385638001,1757933440058,-4276.0,0.00025,10]
[385638002,1757933440067,-417.15472785,0.00025,10]
[385638003,1757933440077,-273.39878242,0.0002501,2]
[385638005,1757933440086,-1000.0,0.00025121,2]
[385638006,1757933440095,-1000.0,0.00025121,2]
[385638007,1757933440104,-501.47231285,0.00025121,2]
[385638008,1757933440113,-1143.24831229,0.00025121,2]
[385638009,1757933440122,-1000.0,0.00025121,2]
[385638010,1757933440131,-1000.0,0.00025121,2]
[385638011,1757933440140,-1000.0,0.00025121,2]
[385638012,1757933440150,-1000.0,0.00025121,2]
[385638013,1757933440160,-1000.0,0.00025121,2]
[385638014,1757933440170,-339.79,0.00025179,2]
[385638015,1757933440180,-295.4474759,0.00025205,2]
[385638017,1757933440191,-500.0,0.00025205,3]
[385638019,1757933440200,-500.0,0.00025205,2]
[385638021,1757933440209,-151.0,0.00025205,3]
[385638023,1757933440218,-480.0,0.00025205,3]
[385638025,1757933440228,-480.0,0.00025205,3]
[385638027,1757933440237,-480.0,0.00025205,3]
[385638029,1757933440246,-480.0,0.00025205,3]
[385638030,1757933440256,-152.05,0.00025205,3]
[385638031,1757933440265,-480.0,0.00025205,3]
[385638032,1757933440275,-480.0,0.00025205,3]
[385638033,1757933440284,-480.0,0.00025205,3]
[385638034,1757933440294,-480.0,0.00025205,3]
[385638035,1757933440307,-220.49723217,0.00025205,3]
[385638036,1757933440317,-480.0,0.00025205,3]
[385638037,1757933440327,-659.08,0.00025205,3]
[385638038,1757933440336,-7162.47,0.00025205,3]
[385638039,1757933440346,-480.0,0.00025205,3]
[385638040,1757933440355,-480.0,0.00025205,3]
[385638041,1757933440365,-480.0,0.00025205,3]
[385638042,1757933440376,-480.0,0.00025205,3]
[385638043,1757933440386,-1257.88,0.00025205,3]
[385638044,1757933440395,-480.0,0.00025205,3]
[385638045,1757933440405,-480.0,0.00025205,3]
[385638046,1757933440415,-480.0,0.00025205,3]
[385638047,1757933440425,-480.0,0.00025205,3]
[385638048,1757933440435,-480.0,0.00025205,3]
[385638049,1757933440445,-480.0,0.00025205,3]
[385638050,1757933440454,-480.0,0.00025205,3]
[385638051,1757933440464,-480.0,0.00025205,3]
[385638052,1757933440474,-480.0,0.00025205,3]
[385638053,1757933440483,-1594.9435729,0.00025205,3]
[385638054,1757933440498,-113.2364271,0.00025205,3]
[385638055,1757933440507,-480.0,0.00025205,3]
[385638056,1757933440517,-79.87969579,0.00025216,2]
[385638057,1757933440528,-1873.84500827,0.00025216,2]
[385638058,1757933440539,-46.27529594,0.00025216,2]
[385638059,1757933440550,-480.19424887,0.00025216,2]
[385638060,1757933440562,-1519.80575113,0.00025216,2]
[385638061,1757933440572,-1513.42680806,0.00025216,2]
[385638062,1757933440582,-1151.58368499,0.00025244,2]
[385638063,1757933440591,-504.63130133,0.00025421,2]
[385638064,1757933440601,-946.93021751,0.00025421,2]
[385638079,1757933440767,-368.43763188,0.000248,2]
[385638094,1757933440876,-546.20276724,0.000248,2]
[385638095,1757933440887,-1213.87500442,0.000248,2]
[385638131,1757933446837,-480.0,0.00024657,3]
[385638132,1757933446847,-105.65323093,0.000248,2]
[385638133,1757933446942,-5449.16871916,0.000248,2]
[385638159,1757933623833,217.0,0.00027397,120]
[385638161,1757933649011,943.5,0.00027397,120]
[385638164,1757933754538,300.0,0.00027397,120]
[385638167,1757933794835,610.0,0.00027397,120]
[385638168,1757933812430,796.86,0.00027397,120]
[385638173,1757933975164,163.970046,0.00027397,120]
[385638221,1757934066838,300.0,0.00027397,120]
[385638265,1757934328068,437.864896,0.00021847,2]
[385638266,1757934381337,300.0,0.00027397,120]
[385638283,1757934562183,-338.5079095,0.0002184,2]
[385638284,1757934562201,-179.73097,0.00022108,2]
[385638285,1757934562221,-4669.9639084,0.00022148,2]
[385638348,1757934632029,-162.749648,0.00022148,2]
[385638350,1757934632039,-300.0,0.000228,2]
[385638351,1757934632048,-745.88269549,0.00022826,2]
[385638352,1757934632059,-1726.80952258,0.00022826,2]
[385638366,1757934637995,-525.2758964,0.00022747,2]
[385638367,1757934638005,-8120.12033568,0.00022826,2]
[385638368,1757934638015,-300.0,0.00022828,2]
[385638369,1757934638024,-1022.17934066,0.00022828,2]
[385638370,1757934638035,-177.82065934,0.00022828,2]
[385638371,1757934638045,-300.0,0.00022828,2]
[385638372,1757934638054,-300.0,0.00022828,2]
[385638373,1757934638064,-300.0,0.00022828,2]
[385638374,1757934638073,-160.0,0.00022832,2]
[385638375,1757934638086,-1200.0,0.00022834,2]
[385638376,1757934638118,-1905.16884127,0.00022847,2]
[385638377,1757934638158,-5298.5188089,0.00022847,2]
[385638378,1757934638170,-533.92,0.00022847,2]
[385638379,1757934638182,-24171.39704474,0.00022847,2]
[385638380,1757934638195,-1289.31002459,0.00022847,2]
[385638381,1757934638205,-374.95,0.0002285,2]
[385638382,1757934638214,-317.11087564,0.00022868,2]
[385638383,1757934638223,-500.0,0.00022868,2]
[385638384,1757934638233,-598.32813021,0.00022868,2]
[385638385,1757934638242,-500.0,0.00022868,2]
[385638386,1757934638251,-12792.9698051,0.00022869,2]
[385638387,1757934638260,-160.87432306,0.00022873,2]
[385638388,1757934638269,-500.0,0.00022873,2]
[385638389,1757934638278,-182.71199432,0.00022873,2]
[385638390,1757934638288,-503.49835,0.00022873,2]
[385638391,1757934638297,-500.0,0.00022873,2]
[385638392,1757934638306,-500.0,0.00022873,2]
[385638393,1757934638315,-500.0,0.00022873,2]
[385638394,1757934638325,-500.0,0.00022873,2]
[385638395,1757934638334,-500.0,0.00022873,2]
[385638396,1757934638345,-157.54490115,0.00022873,2]
[385638397,1757934638355,-500.0,0.00022873,2]
[385638398,1757934638363,-500.0,0.00022873,2]
[385638399,1757934638373,-485.28979881,0.00022873,2]
[385638400,1757934638382,-500.0,0.00022873,2]
[385638401,1757934638392,-500.0,0.00022873,2]
[385638402,1757934638401,-503.06404545,0.00022873,2]
[385638403,1757934638411,-500.0,0.00022873,2]
[385638404,1757934638420,-324.28321046,0.000229,2]
[385638405,1757934638429,-250.68086532,0.000229,2]
[385638406,1757934638439,-300.0,0.00023,2]
[385638407,1757934638449,-1000.0,0.00023421,2]
[385638408,1757934638458,-500.0,0.00023421,2]
[385638409,1757934638467,-1000.0,0.00023421,2]
[385638410,1757934638477,-506.61713057,0.00023421,2]
[385638411,1757934638486,-1000.0,0.00023421,2]
[385638412,1757934638495,-500.95830453,0.00023421,2]
[385638413,1757934638505,-1000.0,0.00023421,2]
[385638414,1757934638514,-1000.0,0.00023421,2]
[385638415,1757934638523,-1000.0,0.00023421,2]
[385638416,1757934638532,-214.07642601,0.0002383,2]
[385638417,1757934638542,-339.79,0.0002386,2]
[385638418,1757934638551,-500.0,0.00023873,2]
[385638419,1757934638560,-500.0,0.00023873,2]
[385638420,1757934638570,-500.0,0.00023873,2]
[385638421,1757934638579,-953.9,0.00023937,10]
[385638422,1757934638588,-2181.77027244,0.00023947,2]
[385638423,1757934638598,-18523.28004424,0.00023947,2]
[385638424,1757934638607,-2455.58,0.00023947,2]
[385638425,1757934638616,-2181.7702724,0.00023954,2]
[385638426,1757934638626,-2181.7702724,0.0002396,2]
[385638427,1757934638635,-2181.7702724,0.00023967,2]
[385638428,1757934638647,-151.0,0.00023968,2]
[385638429,1757934638656,-1500.0,0.00023968,2]
[385638430,1757934638666,-500.0,0.00023968,2]
[385638431,1757934638675,-1312.60051514,0.00023968,2]
[385638432,1757934638685,-1500.0,0.00023968,2]
[385638433,1757934638696,-1500.0,0.00023968,2]
[385638434,1757934638706,-2181.7702724,0.00023973,2]
[385638435,1757934638717,-500.0,0.00023973,2]
[385638436,1757934638726,-151.0,0.00023973,2]
[385638437,1757934638735,-151.0,0.00023973,2]
[385638438,1757934638744,-151.0,0.00023973,2]
[385638439,1757934638753,-157.0,0.00023973,2]
[385638440,1757934638763,-253.95294012,0.00023973,2]
[385638441,1757934638772,-151.0,0.00023973,2]
[385638442,1757934638781,-151.0,0.00023973,2]
[385638443,1757934638791,-410554.3626727,0.00024047,7]
[385638444,1757934638800,-370000.0,0.00024048,2]
[385638445,1757934638809,-500.0,0.00024073,2]
[385638446,1757934638819,-501.12335706,0.00024073,2]
[385638447,1757934638828,-500.0,0.00024073,2]
[385638448,1757934638837,-501.99665933,0.00024073,2]
[385638449,1757934638847,-501.06223542,0.00024073,2]
[385638450,1757934638856,-500.0,0.00024073,2]
[385638451,1757934638865,-500.0,0.00024073,2]
[385638452,1757934638874,-500.0,0.00024073,2]
[385638453,1757934638883,-160.20451492,0.00024073,2]
[385638454,1757934638893,-500.0,0.00024073,2]
[385638455,1757934638902,-500.8208228,0.00024073,2]
[385638456,1757934638911,-500.0,0.00024073,2]
[385638457,1757934638920,-257.52389537,0.00024073,2]
[385638458,1757934638929,-500.0,0.00024073,2]
[385638459,1757934638938,-500.0,0.00024073,2]
[385638460,1757934638949,-181.21081558,0.00024073,2]
[385638461,1757934638959,-500.0,0.00024073,2]
[385638462,1757934638968,-500.0,0.00024073,2]
[385638463,1757934638978,-230.35488053,0.00024073,2]
[385638464,1757934638987,-500.0,0.00024073,2]
[385638465,1757934638997,-500.0,0.00024073,2]
[385638466,1757934639006,-500.0,0.00024073,2]
[385638467,1757934639015,-500.0,0.00024073,2]
[385638468,1757934639025,-500.0,0.00024073,2]
[385638469,1757934639034,-500.0,0.00024073,2]
[385638470,1757934639043,-203.1771519,0.00024073,2]
[385638471,1757934639053,-500.0,0.00024073,2]
[385638472,1757934639062,-500.0,0.00024073,2]
[385638473,1757934639071,-500.0,0.00024073,2]
[385638474,1757934639080,-500.0,0.00024073,2]
[385638475,1757934639090,-500.0,0.00024073,2]
[385638476,1757934639099,-500.0,0.00024073,2]
[385638477,1757934639108,-500.0,0.00024073,2]
[385638478,1757934639117,-500.0,0.00024073,2]
[385638479,1757934639127,-500.0,0.00024073,2]
[385638480,1757934639136,-500.0,0.00024073,2]
[385638481,1757934639145,-11131.79,0.000241,7]
[385638482,1757934639156,-1057.66,0.000241,7]
[385638483,1757934639165,-500.0,0.00024247,2]
[385638484,1757934639174,-151.0,0.00024247,2]
[385638485,1757934639183,-1001.2309403,0.00024421,2]
[385638486,1757934639193,-1000.894167,0.00024421,2]
[385638487,1757934639202,-2000.0,0.00024516,2]
[385638488,1757934639211,-2000.0,0.00024516,2]
[385638489,1757934639222,-2000.0,0.00024516,2]
[385638490,1757934639232,-500.0,0.00024521,2]
[385638491,1757934639241,-177.78883637,0.00024521,2]
[385638492,1757934639367,-553.08383044,0.0002455,2]
[385638493,1757934639376,-1000.0,0.00024621,2]
[385638494,1757934639385,-1000.0,0.00024621,2]